Cogmind - Beta 17 @@@ ROGUE MODE // 2026.08.10 @ 00:15:00 Player: Marc Result: Destroyed by H-66 Slayer with Heavy Assault Rifle Performance ------------- Evolutions (4) 2000 Regions Visited (7) 1400 Robots Destroyed (22) 110 Value Destroyed (676) 676 Prototype IDs (5) 100 Alien Tech Used (0) 0 Bonus (211) 211 TOTAL SCORE: 4497 Bonus ------- Follower Combat Kills 211 Cogmind --------- Core Integrity 0/850 Matter 38/300 Energy 58/100 System Corruption 1% Temperature Cool (0) Movement Core (50) Location -6/Extension Parts ------- > --- POWER (2) -------- (None) > --- PROPULSION (4) --- (None) > --- UTILITY (7) ------ Advanced Weight Redist. System Improved Signal Interpreter Improved Terrain Scanner Improved Terrain Scan Processor > --- WEAPON (2) ------- (None) > --- INVENTORY (5) ---- (None) Peak State ------------ > --- POWER ------------ Micro Nuclear Core Micro Nuclear Core > --- PROPULSION ------- Xenon Bombardment Thruster Xenon Bombardment Thruster Nuclear Pulse Thruster Nuclear Pulse Thruster > --- UTILITY ---------- Advanced Weight Redist. System Advanced Sensor Array Improved Signal Interpreter Improved Terrain Scanner Improved Terrain Scan Processor Hardlight Generator Hacking Suite > --- WEAPON ----------- Gauss Rifle Improved Datajack > --- INVENTORY -------- Flight Unit Seismic Detector Magnetic Acceleration Cannon Remote Datajack [Rating: 57] Favorites ----------- Power Micro Nuclear Core Engine Ion Engine Power Core Micro Nuclear Core Propulsion Flight Unit Treads Light Treads Leg Aluminum Leg Hover Unit Gravmag System Flight Unit Flight Unit Utility Advanced Weight Redist. System Device Advanced Weight Redist. System Storage Compact Matter Pod Processor Improved Terrain Scan Processor Hackware Hacking Suite Weapon Gauss Rifle Energy Gun Small Laser Energy Cannon Advanced Beam Cannon Ballistic Gun Gauss Rifle Ballistic Cannon Magnetic Acceleration Cannon Launcher Grenade Launcher Special Weapon Remote Datajack Slashing Weapon Chainsword Special Melee Weapon Improved Datajack Build | -11 -10 -10 -9 -8 -7 -6 -6 ------- Run | Yrd Mat Min Mat Mat Fac Fac Ext Slots Evolved 8 | . . . 2 2 2 2 . Power 1 | . . . . . . 1 . Propulsion 2 | . . . 1 1 . . . Utility 5 | . . . 1 1 2 1 . Weapon . | . . . . . . . . Parts Attached 64 | 5 6 6 5 17 11 12 2 Power 8 | 1 . 2 1 1 1 1 1 Engine 3 | 1 . 2 . . . . . Core 5 | . . . 1 1 1 1 1 Reactor . | . . . . . . . . Propulsion 15 | 2 . 2 3 3 2 3 . Treads 2 | . . . . 2 . . . Leg 4 | 2 . 2 . . . . . Wheel . | . . . . . . . . Hover 1 | . . . . . . 1 . Flight 8 | . . . 3 1 2 2 . Utility 24 | . 3 1 . 9 5 5 1 Device 16 | . 2 1 . 5 4 3 1 Storage 1 | . . . . . . 1 . Processor 4 | . . . . 2 1 1 . Hackware 3 | . 1 . . 2 . . . Protection . | . . . . . . . . Artifact . | . . . . . . . . Weapon 17 | 2 3 1 1 4 3 3 . Energy Gun 4 | 2 . 1 . . 1 . . Energy Cannon 2 | . . . 1 1 . . . Ballistic Gun 4 | . . . . 2 1 1 . Ballistic Cannon 1 | . . . . . . 1 . Launcher 1 | . 1 . . . . . . Special Weapon 1 | . . . . . 1 . . Impact Weapon . | . . . . . . . . Slashing Weapon 1 | . . . . . . 1 . Piercing Weapon . | . . . . . . . . Special Melee Weapon 3 | . 2 . . 1 . . . Unidentified Prototypes 3 | . . 1 1 1 . . . Parts Lost 28 | . 1 7 1 3 4 1 11 Power 5 | . . 2 . . 1 . 2 Propulsion 9 | . . 2 . 1 2 . 4 Utility 8 | . 1 1 . 2 1 . 3 Weapon 6 | . . 2 1 . . 1 2 Highest Loss Streak 9 | . 1 7 1 1 2 1 9 To Critical Strikes . | . . . . . . . . Average Backups 3 | . 1 1 3 4 3 4 3 Power . | . . . . . . . . Propulsion . | . . 1 1 . . . . Utility 1 | . . . . 3 2 1 1 Weapon . | . . . 1 . . . . Tool/Special . | . . . . . . . . Unused Backups 15 | . . . 3 9 2 1 . Power 3 | . . . . 2 1 . . Propulsion 4 | . . . 2 2 . . . Utility 3 | . . . . 3 . . . Weapon 4 | . . . 1 2 . 1 . Tool/Special 1 | . . . . . 1 . . Average Slot Usage (%) 82 | . 79 67 77 86 90 84 47 Engine 3 | . 14 7 10 . . . . Core 5 | . . . . 8 7 8 3 Leg 5 | . 28 18 5 . . . . Flight 19 | . . . 25 30 22 22 13 Device 20 | . 10 24 22 23 22 19 8 Processor 6 | . . . . 1 14 13 13 Hackware 4 | . 1 . . 6 7 6 3 Energy Gun 1 | . 2 6 3 . . . . Energy Cannon 1 | . . . 5 5 . . . Ballistic Gun 3 | . . . . 3 7 5 . Launcher 1 | . 12 1 . . . . . Special Weapon 1 | . . . . . 4 . . Special Melee Weapon 5 | . 9 7 6 5 2 5 3 Peak Build Rating 57 | 5 9 13 17 34 40 57 43 Average Rating 26 | 3 5 9 14 25 34 44 26 On Entrance 19 | . 5 9 13 14 29 39 43 Avg Prop Armor Cover (%) 9 | . . . . 9 . . . Naked Turns . | . . . . . . . . Heaviest Build 24 | 9 11 12 15 22 19 24 9 Greatest Support 27 | 20 20 20 20 27 26 24 24 Greatest Overweight (x) 2 | . . 1 1 . . 1 2 Average Overweight (x) . | . . . . . . . . Largest Inventory Capacity 5 | 5 5 5 5 5 5 5 5 Average Capacity 5 | 5 5 5 5 5 5 5 5 Most Carried 5 | 5 4 4 5 5 5 5 4 Average Carried 3 | . 1 1 3 4 3 4 3 Final Capacity 5 | 5 5 5 5 5 5 5 5 Final Carried 5 | . 3 1 4 5 3 4 . Class Distribution -------------------- 43% | Mutant 19% | Scientist-Sprinter 16% | Scientist-Mutant 12% | Sprinter 5% | Hacker-Sprinter Dominant Class ---------------- Mutant | -10/Materials Mutant | -10/Mines Mutant | -9/Materials Mutant | -8/Materials Scientist-Sprinter | -7/Factory Scientist-Mutant | -6/Factory Sprinter | -6/Extension Resources | -11 -10 -10 -9 -8 -7 -6 -6 ----------- Run | Yrd Mat Min Mat Mat Fac Fac Ext Matter Collected 1144 | 105 45 149 139 518 132 40 16 Remotely . | . . . . . . . . Salvage Created 641 | . 107 . 18 318 198 . . Parts 49 | . 19 . 4 17 9 . . Haulers Intercepted . | . . . . . . . . Recyclers Shooed 1 | . . . . . . 1 . Parts Field Recycled 3 | . . . . 3 . . . Retrieved Matter 3 | . . . . 3 . . . Parts Self-Destructed . | . . . . . . . . Prevented . | . . . . . . . . Parts Restored . | . . . . . . . . Kills | -11 -10 -10 -9 -8 -7 -6 -6 ------- Run | Yrd Mat Min Mat Mat Fac Fac Ext Combat Hostiles Destroyed 16 | . 6 . . 6 4 . . Guns 7 | . . . . 3 4 . . Cannons 3 | . . . . 3 . . . AOE 6 | . 6 . . . . . . Classes Destroyed 11 | . 5 . . 4 2 . . Worker 2 | . 1 . 1 . . . . Builder 1 | . 1 . . . . . . Operator 2 | . 2 . . . . . . Drone 1 | . . . . 1 . . . Watcher 1 | . . . . 1 . . . Swarmer 4 | . 3 . . 1 . . . Grunt 5 | . 3 . . 1 1 . . Brawler 1 | . . . . . 1 . . Sentry 3 | . . . . 3 . . . Hunter 2 | . . . . 1 1 . . Programmer 1 | . . . . . 1 . . Best Kill Streak 5 | . 5 . 1 2 2 . . Combat Bots Only 3 | . 3 . . 2 2 . . Max Kills in Single Turn 3 | . 3 . 1 1 1 . . Gunslinging . | . . . . . . . . Exploded 2 | . 2 . . . . . . Melee . | . . . . . . . . Uniques/NPCs Destroyed . | . . . . . . . . Combat | -11 -10 -10 -9 -8 -7 -6 -6 -------- Run | Yrd Mat Min Mat Mat Fac Fac Ext Hostile Shots Fired 360 | . 26 28 12 53 58 25 158 Missed 170 | . 4 7 5 26 24 12 92 Hits 190 | . 22 21 7 27 34 13 66 Projectile 190 | . 22 21 7 27 34 13 66 Critical Strikes 4 | . 1 1 . 1 . 1 . Part Disruptions 1 | . . . . . . 1 . Damage Taken 2620 | . 275 279 89 337 440 159 1041 Core 1255 | . 65 103 . 90 141 72 784 Absorbed by Shields 5 | . . . . . . . 5 Regen/Repaired (Parts) 13 | . . . . 13 . . . Core Remaining (%) 78 | 100 . 32 100 83 79 . . Volleys Fired 99 | . 14 . 13 41 30 1 . Largest 1 | . 1 . 1 1 1 1 . Hottest 68 | . 30 . 68 68 28 28 . Shots Fired 99 | . 14 . 13 41 30 1 . Gun 59 | . . . . 30 28 1 . Cannon 24 | . . . 13 11 . . . Launcher 14 | . 14 . . . . . . Special 2 | . . . . . 2 . . Kinetic 59 | . . . . 30 28 1 . Thermal 24 | . . . 13 11 . . . Explosive 14 | . 14 . . . . . . Electromagnetic . | . . . . . . . . Robot Hit Streak 17 | . 2 . 3 11 16 17 . Robot Miss Streak 5 | . 2 . 3 5 2 . . Penetration Max 1 | . . . . . 1 . . Secondary Targets . | . . . . . . . . Shots Hit Robots 74 | . 8 . 7 29 27 3 . Core Hits 39 | . 18 . 1 11 9 . . Critical Kills 1 | . . . . . 1 . . Critical Parts Destroyed 2 | . . . . 1 1 . . Critical Strikes 3 | . . . . 1 2 . . Destroy 3 | . . . . 1 2 . . Melee Attacks 15 | . 4 . . 5 4 2 . Impact . | . . . . . . . . Slashing . | . . . . . . . . Piercing . | . . . . . . . . Sneak Attacks 12 | . 3 . . 3 4 2 . Combat Hostiles 1 | . . . . 1 . . . Follow-up Attacks . | . . . . . . . . Damage Inflicted 1795 | . 603 . 186 550 436 20 . Guns 789 | . . . . 333 436 20 . Cannons 403 | . . . 186 217 . . . Explosions 603 | . 603 . . . . . . Melee . | . . . . . . . . Ramming . | . . . . . . . . Kinetic 789 | . . . . 333 436 20 . Thermal 403 | . . . 186 217 . . . Explosive 603 | . 603 . . . . . . Electromagnetic . | . . . . . . . . Impact . | . . . . . . . . Slashing . | . . . . . . . . Piercing . | . . . . . . . . Highest Corruption 2 | . 1 1 . . 2 1 1 Average Corruption 1 | . 1 1 . . 1 1 1 Corruption Purged . | . . . . . . . . Corruption Blocked . | . . . . . . . . Effects 6 | . 1 2 . . 2 1 . Matter Fused 2 | . . 2 . . . . . Heat Flow Errors 1 | . 1 . . . . . . Energy Discharges 1 | . . . . . 1 . . Data Loss (minor) 1 | . . . . . 1 . . Data Loss (major) 1 | . . . . . . 1 . Overload Shots . | . . . . . . . . Overflow Damage 46 | . 35 . 11 . . . . Projectiles 11 | . . . 11 . . . . Explosions 35 | . 35 . . . . . . Melee . | . . . . . . . . Knockbacks . | . . . . . . . . Impact . | . . . . . . . . Kinetic . | . . . . . . . . Secondary . | . . . . . . . . Self-Inflicted Damage 64 | . 64 . . . . . . Shots 3 | . 3 . . . . . . Rammed . | . . . . . . . . Targets Rammed . | . . . . . . . . Kicked . | . . . . . . . . Crushed . | . . . . . . . . Highest Temperature 180 | . 149 15 180 133 3 8 3 Average Temperature 52 | . 58 15 84 31 1 2 2 Received Heat Transfer 660 | . 93 177 30 108 81 24 147 Siege Activations . | . . . . . . . . Martial Activations . | . . . . . . . . Shielding Activations . | . . . . . . . . Robots Disrupted . | . . . . . . . . Combat Hostiles . | . . . . . . . . Robots Corrupted . | . . . . . . . . Combat Hostiles . | . . . . . . . . Parts Fried . | . . . . . . . . Impact Corruptions . | . . . . . . . . Robots Melted . | . . . . . . . . Combat Hostiles . | . . . . . . . . Parts Melted . | . . . . . . . . Heat Transferred 703 | . . . 333 370 . . . Parts Sabotaged . | . . . . . . . . Parts Stolen . | . . . . . . . . Parts Stripped . | . . . . . . . . Power Chain Reactions . | . . . . . . . . Alert | -11 -10 -10 -9 -8 -7 -6 -6 ------- Run | Yrd Mat Min Mat Mat Fac Fac Ext Maximum Alert Level 1 | . . . . 1 . . . Low Security (%) 99 | 100 100 100 100 96 100 100 100 Level 1 . | . . . . 3 . . . Level 2 . | . . . . . . . . Level 3 . | . . . . . . . . Level 4 . | . . . . . . . . Level 5 . | . . . . . . . . High Security . | . . . . . . . . Max Security . | . . . . . . . . Peak Influence 255 | . 106 42 73 255 83 23 50 Initial 52 | . . 21 . 26 52 21 7 Average 30 | . 35 11 38 66 21 2 23 Influence Increases 1330 | . 210 52 183 532 202 46 105 Destroy 0b10 Robot/C 520 | . 120 20 60 240 80 . . Destroy 0b10 Robot/NC 30 | . 20 . 5 5 . . . Destroy Leader 152 | . 20 . 20 82 30 . . Allied During Kill 33 | . . 2 8 23 . . . Successful Hack 15 | . . . . 15 . . . Disable Machine 15 | . . . . 15 . . . Destroy Structure 55 | . 50 . . 2 2 1 . Partial Spotted 60 | . . . 15 . . 15 30 Lose Combat Pursuer 450 | . . 30 75 150 90 30 75 Influence Decreases 1310 | . 154 108 120 479 274 75 100 Entered New Map 167 | . . 35 . 37 64 23 8 Time Decay 810 | . 144 52 110 242 170 52 40 Lost Part 163 | . 10 21 10 30 40 . 52 Lost Ally 20 | . . . . 20 . . . Purge Threat 150 | . . . . 150 . . . Squads Dispatched 14 | . 1 . 1 2 5 4 1 Investigation 5 | . . . . 1 2 2 . Extermination 2 | . . . . . 1 1 . Reinforcement 7 | . 1 . 1 1 2 1 1 Assault . | . . . . . . . . Garrison . | . . . . . . . . Intercept . | . . . . . . . . Searches Triggered . | . . . . . . . . Construction Impeded . | . . . . . . . . Haulers Reinforced . | . . . . . . . . Active Scanning Responses . | . . . . . . . . Cargo Convoy Interrupts . | . . . . . . . . Stealth | -11 -10 -10 -9 -8 -7 -6 -6 --------- Run | Yrd Mat Min Mat Mat Fac Fac Ext Distress Signals 5 | . 1 . 1 2 1 . . Communications Jammed . | . . . . . . . . Distress Signals . | . . . . . . . . Times Spotted 86 | . 10 4 6 23 15 11 17 Peak Tracking Total 11 | . 5 2 5 9 6 7 11 Tactical Retreats 20 | . . 1 5 5 4 2 3 Traps | -11 -10 -10 -9 -8 -7 -6 -6 ------- Run | Yrd Mat Min Mat Mat Fac Fac Ext Traps Triggered 4 | . 1 . . . 1 . 2 Indirectly . | . . . . . . . . Trap Hack Attempts . | . . . . . . . . Triggered . | . . . . . . . . Disarmed . | . . . . . . . . Reprogrammed . | . . . . . . . . Reused . | . . . . . . . . Traps Extracted . | . . . . . . . . Installed . | . . . . . . . . Triggered . | . . . . . . . . Machines | -11 -10 -10 -9 -8 -7 -6 -6 ---------- Run | Yrd Mat Min Mat Mat Fac Fac Ext Machines Disabled 1 | . . . . 1 . . . Max in Single Turn 1 | . . . . 1 . . . Machines Repaired . | . . . . . . . . Machines Dismantled . | . . . . . . . . Machines Sabotaged . | . . . . . . . . Overloaded Fab Kills . | . . . . . . . . Hacking | -11 -10 -10 -9 -8 -7 -6 -6 --------- Run | Yrd Mat Min Mat Mat Fac Fac Ext Machines Accessed 15 | . . 1 . 6 5 3 . Terminals 6 | . . . . 3 2 1 . Fabricators 1 | . . . . . 1 . . Repair Stations 2 | . . . . 1 1 . . Recycling Units 2 | . . . . . . 2 . Scanalyzers 3 | . . . . 2 1 . . Garrison Access . | . . . . . . . . Total Hacks 45 | . . 1 . 22 15 7 . Successful 30 | . . 1 . 16 9 4 . Failed 14 | . . . . 5 6 3 . Catastrophic 3 | . . . . 1 1 1 . Database Lockouts 1 | . . . . 1 . . . Manual 2 | . . . . 2 . . . Terminals 19 | . . . . 12 4 3 . Fabricators 2 | . . . . . 2 . . Repair Stations 5 | . . . . 2 3 . . Recycling Units 4 | . . . . . . 4 . Scanalyzers 14 | . . . . 8 6 . . Garrison Access . | . . . . . . . . Terminal Hacks 11 | . . 1 . 8 1 1 . Record 4 | . . . . 4 . . . Prototype ID Bank 1 | . . . . 1 . . . Open Door 1 | . . 1 . . . . . Open DSF 1 | . . . . . 1 . . Unreport Threat 1 | . . . . 1 . . . Maintenance Status 1 | . . . . 1 . . . Assault Status 1 | . . . . 1 . . . Recall Extermination 1 | . . . . . . 1 . Fabricator Hacks 2 | . . . . . 2 . . Network Status 1 | . . . . . 1 . . Load Schematic 1 | . . . . . 1 . . Repair Station Hacks 3 | . . . . 2 1 . . Scan Component 2 | . . . . 1 1 . . Repair 1 | . . . . 1 . . . Recycling Unit Hacks 3 | . . . . . . 3 . Process 1 | . . . . . . 1 . Report Inventory 2 | . . . . . . 2 . Scanalyzer 11 | . . . . 6 5 . . Insert Component 3 | . . . . 2 1 . . Analyze 2 | . . . . 2 . . . Retrieve Study 6 | . . . . 2 4 . . Garrison Access Hacks . | . . . . . . . . Unauthorized Hacks . | . . . . . . . . Terminals . | . . . . . . . . Fabricators . | . . . . . . . . Repair Stations . | . . . . . . . . Recycling Units . | . . . . . . . . Scanalyzers . | . . . . . . . . Garrison Access . | . . . . . . . . Data Cores Recovered . | . . . . . . . . Used . | . . . . . . . . Hacking Detections 10 | . . . . 3 4 3 . Full Trace Events 5 | . . . . 1 2 2 . Feedback Events 1 | . . . . . . 1 . Corruption 1 | . . . . . . 1 . Feedback Blocked . | . . . . . . . . Robot Schematics Acquired . | . . . . . . . . Robots Built . | . . . . . . . . Authchips . | . . . . . . . . Time . | . . . . . . . . Total Robot Build Rating . | . . . . . . . . Part Schematics Acquired 2 | . . . . 2 . . . Parts Built . | . . . . . . . . Authchips . | . . . . . . . . Time . | . . . . . . . . Total Part Build Rating . | . . . . . . . . Part Studies Acquired 6 | . . . . 2 4 . . Parts Repaired 1 | . . . . 1 . . . Time 26 | . . . . 26 . . . Parts Recycled . | . . . . . . . . Recycled Matter 9 | . . . . . . 9 . Retrieved Matter . | . . . . . . . . Retrieved Components . | . . . . . . . . Parts Scanalyzed 2 | . . . . 2 . . . Part Schematics Acquired 2 | . . . . 2 . . . Parts Damaged . | . . . . . . . . Bothacking | -11 -10 -10 -9 -8 -7 -6 -6 ------------ Run | Yrd Mat Min Mat Mat Fac Fac Ext Used RIF Installer . | . . . . . . . . Robots Hacked 11 | . 3 . . 3 3 2 . Non-combat 8 | . 2 . . 1 3 2 . Combat 3 | . 1 . . 2 . . . Robot Hacks Applied 14 | . 3 . . 3 6 2 . parse_system 3 | . 1 . . 2 . . . no_distress 9 | . 2 . . 1 4 2 . find_chute 1 | . . . . . 1 . . find_station 1 | . . . . . 1 . . Relay Couplers Released . | . . . . . . . . Fabnet Peak Effective % . | . . . . . . . . Robots Rewired . | . . . . . . . . Allies Hacked . | . . . . . . . . Hacks Repelled . | . . . . . . . . Allies | -11 -10 -10 -9 -8 -7 -6 -6 -------- Run | Yrd Mat Min Mat Mat Fac Fac Ext Total Allies . | . . . . . . . . Largest Group . | . . . . . . . . Highest-Rated Group . | . . . . . . . . Highest-Rated Ally . | . . . . . . . . Total Orders 7 | . . . 4 3 . . . EXPLORE 7 | . . . 4 3 . . . Ally Attacks 123 | . . 14 41 68 . . . Total Damage 505 | . . 47 149 309 . . . Kills 10 | . . 1 3 6 . . . Allies Corrupted . | . . . . . . . . Allies Melted . | . . . . . . . . Intel | -11 -10 -10 -9 -8 -7 -6 -6 ------- Run | Yrd Mat Min Mat Mat Fac Fac Ext Active Infowar (turns) 2657 | . 266 236 237 614 681 570 53 Sensors 183 | . 22 . . . . 112 49 Terrain 1339 | . . . . 179 667 489 4 Structural 1186 | . 266 236 237 435 12 . . Seismic 545 | . . . . . 544 1 . Robot Analysis Total . | . . . . . . . . Derelict Logs Recovered . | . . . . . . . . Drone Launches 26 | . . 4 6 16 . . . Drone Recoveries 23 | . . 1 9 13 . . . Exploration | -11 -10 -10 -9 -8 -7 -6 -6 ------------- Run | Yrd Mat Min Mat Mat Fac Fac Ext Turns Passed 2981 | 55 386 236 237 709 682 570 106 Spaces Moved 2870 | 45 272 155 157 810 670 536 225 Core 134 | 12 . 38 . . . . 84 Treads 32 | . . . . 32 . . . Legs 438 | 33 272 117 16 . . . . Wheels . | . . . . . . . . Hover . | . . . . . . . . Flight 2266 | . . . 141 778 670 536 141 Fastest Speed 29 | 50 120 50 34 29 32 31 31 Average Speed 49 | 101 120 106 61 36 32 31 41 Slowest Speed 160 | 120 120 120 120 160 37 114 150 Overloaded Moves . | . . . . . . . . Propulsion Burnouts . | . . . . . . . . Robots Hopped 4 | . . . . 3 . 1 . Potential Cave-ins . | . . . . . . . . Cave-ins Triggered . | . . . . . . . . Exploration Rate (%) 29 | 3 40 34 28 57 20 14 42 Regions Visited 7 Branch Regions 2 Pre-discovered Areas . | . . . . . . . . Known Exits Taken 2 | . . . . . 1 1 . Unknown Exits Taken 5 | 1 1 1 1 1 . . . Scrap Searched 1 | . . 1 . . . . . Spaces Dug . | . . . . . . . . Terrain Destroyed 61 | . 61 . . . . . . Melee . | . . . . . . . . Projectile . | . . . . . . . . AOE 61 | . 61 . . . . . . Terrain Rammed . | . . . . . . . . Walls Destroyed . | . . . . . . . . Machines Disabled . | . . . . . . . . Actions | -11 -10 -10 -9 -8 -7 -6 -6 --------- Run | Yrd Mat Min Mat Mat Fac Fac Ext Total 4366 | 54 318 225 288 1194 1107 942 238 Wait 1127 | . 10 60 96 265 345 351 . Move 2855 | 44 271 154 156 803 669 533 225 Hop 4 | . . . . 3 . 1 . Pick Up 65 | 5 8 4 3 21 11 13 . Fast Attach 17 | . . . 1 6 4 6 . Attach 65 | 5 6 7 6 16 12 9 4 Detach 29 | . 3 . 4 8 6 8 . Swap 9 | . . . 1 3 4 1 . Drop 61 | . 2 . 8 22 12 17 . Fire 99 | . 14 . 13 41 30 1 . Melee 15 | . 4 . . 5 4 2 . Ram . | . . . . . . . . Kick . | . . . . . . . . Crush . | . . . . . . . . Escape Stasis 19 | . . . . . 10 . 9 Rewire 1 | . . . . 1 . . . Trap . | . . . . . . . . Miscellaneous . | . . . . . . . . Route ------- -11/Scrapyard -10/Materials (discovered 2 exits: [*Mat] / *Min) -10/Mines -9/Materials (discovered 2 exits: *Mat / [*Min]) -8/Materials (discovered 2 exits: *Fac x2) -7/Factory -6/Factory -6/Extension History --------- Turn | Location | Event 20 | -11/Scrapyard | Discovered new exit (range 12) 56 | -11/Scrapyard | Entered Materials 312 | -10/Materials | Build established: Mutant 329 | -10/Materials | Discovered new exit (range 5) 354 | -10/Materials | Discovered new exit (range 15) 442 | -10/Materials | Entered Mines 470 | -10/Mines | Core integrity fell below 50% 492 | -10/Mines | Found the Drone Emporium 494 | -10/Mines | Found Prototype Device 495 | -10/Mines | Identified Thief Drone Bay 511 | -10/Mines | Lost 7 parts (2p2n1u2w) 659 | -10/Mines | Discovered new exit (range 10) 678 | -10/Mines | Entered Materials 678 | -9/Materials | Accompanied by 3 allies 678 | -9/Materials | Evolved 2 slots: Propulsion x1, Utility x1 700 | -9/Materials | Discovered new exit (range 16) 907 | -9/Materials | Discovered new exit (range 16) 915 | -9/Materials | Entered another Materials area 915 | -8/Materials | Evolved 2 slots: Propulsion x1, Utility x1 973 | -8/Materials | Repaired Flight Unit 1319 | -8/Materials | Central database locked down 1435 | -8/Materials | Discovered new exit (range 16) 1619 | -8/Materials | Discovered new exit (range 15) 1624 | -8/Materials | Entered Factory 1624 | -7/Factory | Evolved 2 slots: Utility x2 1918 | -7/Factory | Build established: Scientist-Sprinter 2271 | -7/Factory | Discovered new exit (range 15) 2275 | -7/Factory | Identified exit to Factory 2306 | -7/Factory | Entered another Factory area 2306 | -6/Factory | Evolved 2 slots: Power x1, Utility x1 2438 | -6/Factory | Build established: Scientist-Mutant 2871 | -6/Factory | Discovered new exit (range 13) 2875 | -6/Factory | Identified exit to Extension 2876 | -6/Factory | Entered Extension 2923 | -6/Extension | Spotted B-75 Beast 2925 | -6/Extension | Spotted B-75 Beast 2935 | -6/Extension | Core integrity fell below 50% 2940 | -6/Extension | Core integrity fell below 20% 2964 | -6/Extension | Lost 9 parts (1p4n3u1w) 2982 | -6/Extension | Destroyed by H-66 Slayer with Heavy Assault Rifle Last Messages --------------- 02929_ Xenon Bombardment Thruster destroyed. 02930_ Nuclear Pulse Thruster destroyed. 02932_ Door Terminal disabled. 02933_ ALERT: Hostiles spotted, dispatching reinforcements to Terminal E016. 02933_ Hacking Suite destroyed. 02936_ Knocked back. 02937_ Acquired 6 matter. The Fusion Compressor has per-turn matter upkeep cost and is therefore not activated automatically when attached. Use carefully and keep an eye on your remaining matter supply. 02968_ Slug penetrates T-07 Excavator. 02969_ T-07 Excavator destroyed. 02972_ Penetrated by Slug. 02974_ Remote Datajack destroyed. 02979_ Penetrated by Slug. 02979_ Fusion Compressor destroyed. 02982_ Slug penetrates Wall. 02982_ Penetrated by Slug. Map ----- +----------------------------------------------------+ | ?????????????????????????????????????????????????? | | ?????????????????????????????????????????????????? | | ?????????????????????????????????????????????????? | | ?????????????????????????????????????????????????? | | ?????????????????????????????????????????????????? | | ?????????????????????????????????????????????????? | | ?????????????????????????????????????????????????? | | ?????????????????????????????????????????????????? | | ?????????????????????????????????????????????????? | | ?????????????????????????????????????????????????? | | ?????????????????????????????????????????????????? | | ?????????????????????????????????????????????????? | | ?????????????????????????????????????????????????? | | ?????????????????????????????????????????????????? | | ?????????????????????????????????????????????????? | | ?????#?????????#?#???????????????????????????????? | | ?????????????????????????????????????????????????? | | ?????????#???????????????????????????????????????? | | ?????????????????????????????????????????????????? | | ?????????????????#???????????????????????????????? | | ?????????????????????????????????????????????????? | | ???????#??????#??#???????????????????????????????? | | ????????????????#????????????????????????????????? | | ?????#????#??????????????????????????????????????? | | ##################################???????????????? | | @ !????????? | | b b R ????????? | | b ????????? | | u =%!h h ?????????? | | Rk !u R ?????????? | | #################+#####################??????????? | | ???????????#???? #?????????????????????????????? | | ???????????????? ????????????????????????????? | | ???????????????# ###???????????????????????????? | | ???????????# ???####?????????????????????????????? | | ?#???????????????????????????????????????????????? | | ?#????????????????"??????????????????????????????? | | ?????????#???????????????????????????????????????? | | | | | | | | | | | | | | | | | | | | | | | | | +----------------------------------------------------+ Best States ------------- Heat Dissipation 37 Energy Generation 27 Energy Capacity 250 Matter Stores 300 Matter Capacity 450 Sight Range 16 Robot Scan Range 16 Terrain Scan Range 16 Terrain Scan Density 110 Additional Mass Support 9 Evasion (%) 64 Recoil Reduction 1 Offensive Hacking 10 Defensive Hacking 10 Item Schematics ----------------- Mic. Nuclear Core | -8/Materials | Scanalyzed Com. Matter Pod | -8/Materials | Scanalyzed Robot Schematics ------------------ None Fabricated ------------ Nothing Repaired ---------- Flight Unit | 35% | -8/Materials Studied --------- Cesium-ion Thruster | -8/Materials | Hacked Imp. Datajack | -8/Materials | Hacked Mic. Nuclear Core | -7/Factory | Hacked Flight Unit | -7/Factory | Hacked Gauss Rifle | -7/Factory | Hacked Field Laser | -7/Factory | Hacked Alien Tech Used ----------------- None Achievements -------------- GoHome() I Spy Omniscient Cartographer Challenges ------------ None Game ------ Seed DeflectorDeliveryBiocell Manual? 0 Play Time 01:08:07 Cumulative 11.8 hours Start 2026.08.09 @ 23:02:49 End 2026.08.10 @ 00:15:00 Sessions 1 Manual Loads 0 Difficulty Rogue Special Mode None Game No. 31 Rogue 24 Adventurer 7 Explorer 0 Win Type - Total 0 Types 0/0/0/0/0/0/0/0/0/0 Lore% 9 Gallery% 16 Achievement% 12 Wizard Run 0 Options --------- Layout 1 ASCII 0 Keyboard 0 Movement Mouse Keybinds 0 Fullscreen 1 Font 24/Smallcaps Map View 50x35 Zoom Use 0% Tactical HUD 1 Map Filters NONE Filters NONE Steam 1 RUN: 00bc8ace-f6cf-4a8e-93fa-f2cba9df5ebe